fUST/lending_fUST_20251115
["ID","MTS","AMOUNT","RATE_DAILY","PERIOD"]
[394002338,1763172665257,-500.0,0.00052602,120]
[394002339,1763172665266,-500.0,0.00052602,120]
[394002340,1763172665276,-500.0,0.00052602,120]
[394002341,1763172665286,-500.0,0.00052602,120]
[394002342,1763172665295,-500.0,0.00052602,120]
[394002343,1763172665305,-500.0,0.00052602,120]
[394002344,1763172665314,-183.01505123,0.00052602,100]
[394002345,1763172665323,-500.0,0.00052602,120]
[394002346,1763172665334,-500.0,0.00052602,120]
[394002347,1763172665344,-500.0,0.00052602,120]
[394002348,1763172665353,-511.2404068,0.00052602,120]
[394002349,1763172665363,-500.0,0.00052602,120]
[394002350,1763172665372,-500.0,0.00052602,120]
[394002351,1763172665382,-500.0,0.00052602,120]
[394002352,1763172665391,-521.84966642,0.00052602,120]
[394002353,1763172665400,-500.0,0.00052602,120]
[394002354,1763172665410,-510.36253375,0.00052602,120]
[394002356,1763172665420,-504.33640326,0.00052602,120]
[394002357,1763172665428,-503.01316728,0.00052602,120]
[394002358,1763172665437,-776.15,0.00052602,120]
[394002359,1763172665447,-518.00016815,0.00052602,120]
[394002360,1763172665456,-500.0,0.00052602,120]
[394002361,1763172665467,-503.81136061,0.00052602,120]
[394002362,1763172665478,-500.0,0.00052602,120]
[394002363,1763172665487,-500.0,0.00052602,120]
[394002364,1763172665496,-500.0,0.00052602,120]
[394002365,1763172665506,-529.53919016,0.00052602,120]
[394002366,1763172665516,-614.0118973,0.00052602,120]
[394002367,1763172665525,-500.0,0.00052602,120]
[394002368,1763172665534,-503.27450671,0.00052602,120]
[394002369,1763172665544,-515.28,0.00052602,120]
[394002370,1763172665554,-500.0,0.00052602,120]
[394002371,1763172665563,-500.0,0.00052602,120]
[394002372,1763172665572,-500.0,0.00052602,120]
[394002373,1763172665582,-500.0,0.00052602,120]
[394002374,1763172665591,-500.0,0.00052602,120]
[394002375,1763172665600,-500.0,0.00052602,120]
[394002376,1763172665610,-500.0,0.00052602,120]
[394002377,1763172665619,-500.0,0.00052602,120]
[394002378,1763172665628,-500.0,0.00052602,120]
[394002379,1763172665637,-151.0,0.00052602,120]
[394002380,1763172665647,-777.19,0.00052602,120]
[394002381,1763172665656,-500.0,0.00052602,120]
[394002382,1763172665665,-500.0,0.00052602,120]
[394002383,1763172665673,-500.0,0.00052602,120]
[394002384,1763172665683,-500.0,0.00052602,120]
[394002385,1763172665692,-500.0,0.00052602,120]
[394002386,1763172665702,-500.0,0.00052602,2]
[394002387,1763172665711,-500.0,0.00052602,120]
[394002388,1763172665720,-500.0,0.00052602,120]
[394002389,1763172665730,-500.0,0.00052602,120]
[394002390,1763172665739,-502.4010655,0.00052602,120]
[394002391,1763172665748,-500.0,0.00052602,120]
[394002392,1763172665758,-500.0,0.00052602,120]
[394002393,1763172665767,-500.0,0.00052602,120]
[394002394,1763172665775,-501.30994747,0.00052602,120]
[394002395,1763172665784,-500.0,0.00052602,120]
[394002396,1763172665793,-500.0,0.00052602,2]
[394002397,1763172665802,-629.76,0.00052602,120]
[394002398,1763172665812,-646.13,0.00052602,120]
[394002399,1763172665821,-500.0,0.00052602,120]
[394002400,1763172665830,-500.0,0.00052602,120]
[394002401,1763172665839,-500.0,0.00052602,120]
[394002402,1763172665848,-526.7709235,0.00052602,120]
[394002403,1763172665856,-501.45773799,0.00052602,120]
[394002404,1763172665866,-626.26,0.00052602,120]
[394002405,1763172665875,-512.50811385,0.00052602,120]
[394002406,1763172665884,-500.0,0.00052602,120]
[394002407,1763172665893,-1152.15,0.00052602,120]
[394002408,1763172665902,-500.0,0.00052602,120]
[394002409,1763172665911,-500.0,0.00052602,120]
[394002410,1763172665921,-500.0,0.00052602,120]
[394002411,1763172665931,-500.0,0.00052602,10]
[394002412,1763172665939,-500.0,0.00052602,120]
[394002413,1763172665948,-1477.9,0.00052602,120]
[394002414,1763172665958,-500.0,0.00052602,120]
[394002415,1763172665967,-500.0,0.00052602,120]
[394002416,1763172665977,-500.0,0.00052602,120]
[394002417,1763172665986,-500.0,0.00052602,120]
[394002418,1763172665995,-502.56964964,0.00052602,120]
[394002419,1763172666005,-500.0,0.00052602,120]
[394002420,1763172666014,-500.0,0.00052602,120]
[394002421,1763172666023,-500.0,0.00052602,120]
[394002422,1763172666033,-503.00539789,0.00052602,120]
[394002423,1763172666043,-500.0,0.00052602,120]
[394002424,1763172666052,-500.0,0.00052602,120]
[394002425,1763172666062,-500.0,0.00052602,120]
[394002426,1763172666072,-500.0,0.00052602,120]
[394002427,1763172666081,-937.06,0.00052602,120]
[394002428,1763172666091,-500.0,0.00052602,120]
[394002429,1763172666100,-500.0,0.00052602,120]
[394002430,1763172666109,-500.0,0.00052602,120]
[394002431,1763172666119,-1619.88,0.00052602,30]
[394002432,1763172666129,-500.0,0.00052602,120]
[394002433,1763172666138,-500.0,0.00052602,120]
[394002434,1763172666148,-500.0,0.00052602,120]
[394002435,1763172666157,-539.7,0.00052602,120]
[394002436,1763172666166,-500.0,0.00052602,120]
[394002437,1763172666175,-500.0,0.00052602,120]
[394002438,1763172666184,-500.0,0.00052602,120]
[394002439,1763172666193,-500.0,0.00052602,120]
[394002440,1763172666202,-500.0,0.00052602,120]
[394002441,1763172666211,-500.0,0.00052602,120]
[394002442,1763172666220,-1298.65,0.00052602,120]
[394002443,1763172666229,-500.0,0.00052602,120]
[394002444,1763172666238,-500.0,0.00052602,120]
[394002445,1763172666247,-500.0,0.00052602,120]
[394002446,1763172666256,-500.0,0.00052602,120]
[394002447,1763172666265,-500.0,0.00052602,120]
[394002448,1763172666274,-500.0,0.00052602,120]
[394002449,1763172666284,-500.0,0.00052602,120]
[394002450,1763172666293,-500.0,0.00052602,120]
[394002451,1763172666304,-1188.94,0.00052602,120]
[394002452,1763172666313,-500.0,0.00052602,120]
[394002453,1763172666322,-500.0,0.00052602,120]
[394002454,1763172666331,-500.0,0.00052602,120]
[394002455,1763172666340,-500.0,0.00052602,120]
[394002456,1763172666349,-500.0,0.00052602,120]
[394002457,1763172666358,-151.0,0.00052602,120]
[394002458,1763172666367,-500.0,0.00052602,120]
[394002459,1763172666376,-500.0,0.00052602,120]
[394002460,1763172666386,-500.0,0.00052602,120]
[394002461,1763172666396,-500.0,0.00052602,120]
[394002462,1763172666405,-500.0,0.00052602,120]
[394002463,1763172666414,-500.0,0.00052602,120]
[394002464,1763172666423,-500.0,0.00052602,120]
[394002465,1763172666432,-1000.0,0.00052602,30]
[394002466,1763172666441,-500.0,0.00052602,120]
[394002467,1763172666450,-500.0,0.00052602,120]
[394002468,1763172666459,-151.652557,0.00052602,120]
[394002469,1763172666471,-500.0,0.00052602,120]
[394002470,1763172666481,-500.0,0.00052602,120]
[394002471,1763172666490,-500.0,0.00052602,120]
[394002472,1763172666498,-839.73,0.00052602,120]
[394002473,1763172666507,-500.0,0.00052602,120]
[394002474,1763172666517,-494.460272,0.00052602,2]
[394002475,1763172666526,-151.0,0.00052602,120]
[394002476,1763172666534,-501.32837042,0.00052602,120]
[394002477,1763172666545,-500.0,0.00052602,120]
[394002478,1763172666553,-494.460272,0.00052602,2]
[394002479,1763172666564,-151.0,0.00052602,120]
[394002480,1763172666573,-500.0,0.00052602,120]
[394002481,1763172666582,-500.0,0.00052602,120]
[394002482,1763172666591,-494.460272,0.00052602,2]
[394002483,1763172666600,-151.0,0.00052602,120]
[394002484,1763172666609,-557.41,0.00052602,120]
[394002485,1763172666618,-494.460272,0.00052602,2]
[394002486,1763172666628,-500.0,0.00052602,120]
[394002487,1763172666637,-500.0,0.00052602,120]
[394002488,1763172666646,-500.0,0.00052602,120]
[394002489,1763172666655,-505.97,0.00052602,120]
[394002490,1763172666663,-500.0,0.00052602,120]
[394002491,1763172666672,-520.26,0.00052602,120]
[394002492,1763172666681,-500.0,0.00052602,120]
[394002493,1763172666690,-769.66,0.00052602,120]
[394002494,1763172666813,-500.0,0.00052602,120]
[394002495,1763172666823,-500.0,0.00052602,120]
[394002496,1763172666832,-151.0,0.00052602,120]
[394002497,1763172666841,-500.0,0.00052602,120]
[394002498,1763172666850,-500.0,0.00052602,120]
[394002499,1763172666859,-500.0,0.00052602,120]
[394002500,1763172666868,-500.0,0.00052602,120]
[394002501,1763172666878,-500.0,0.00052602,120]
[394002502,1763172666887,-500.0,0.00052602,120]
[394002503,1763172666896,-500.0,0.00052602,120]
[394002504,1763172666905,-500.0,0.00052602,120]
[394002505,1763172666915,-501.54894285,0.00052602,120]
[394002506,1763172666924,-500.0,0.00052602,120]
[394002507,1763172666933,-500.0,0.00052602,120]
[394002508,1763172666942,-500.0,0.00052602,120]
[394002509,1763172666951,-500.0,0.00052602,120]
[394002510,1763172666960,-500.0,0.00052602,120]
[394002511,1763172666969,-500.0,0.00052602,120]
[394002512,1763172666978,-500.0,0.00052602,120]
[394002513,1763172666987,-500.0,0.00052602,120]
[394002514,1763172666996,-629.45,0.00052602,120]
[394002515,1763172667006,-500.0,0.00052602,120]
[394002516,1763172667016,-500.0,0.00052602,120]
[394002517,1763172667025,-500.0,0.00052602,120]
[394002518,1763172667034,-500.0,0.00052602,120]
[394002519,1763172667043,-456.788697,0.00052602,120]
[394002520,1763172667053,-500.0,0.00052602,120]
[394002521,1763172667062,-456.788697,0.00052602,120]
[394002522,1763172667071,-500.0,0.00052602,120]
[394002523,1763172667080,-532.97,0.00052602,120]
[394002524,1763172667090,-527.42,0.00052602,120]
[394002525,1763172667100,-456.788697,0.00052602,120]
[394002526,1763172667109,-500.0,0.00052602,120]
[394002527,1763172667119,-456.788697,0.00052602,120]
[394002528,1763172667128,-517.42,0.00052602,120]
[394002529,1763172667138,-1390.62,0.00052602,120]
[394002530,1763172667147,-501.30764352,0.00052602,120]
[394002531,1763172667157,-500.0,0.00052602,120]
[394002532,1763172667167,-172.558549,0.00052602,120]
[394002533,1763172667176,-500.0,0.00052602,120]
[394002534,1763172667186,-500.0,0.00052602,120]
[394002535,1763172667195,-172.558549,0.00052602,120]
[394002536,1763172667204,-172.558549,0.00052602,120]
[394002537,1763172667214,-500.0,0.00052602,120]
[394002538,1763172667223,-500.0,0.00052602,120]
[394002539,1763172667232,-500.0,0.00052602,120]
[394002540,1763172667241,-500.0,0.00052602,120]
[394002541,1763172667250,-500.0,0.00052602,120]
[394002542,1763172667259,-500.0,0.00052602,120]
[394002543,1763172667268,-501.40074258,0.00052602,120]
[394002544,1763172667277,-500.0,0.00052602,120]
[394002545,1763172667286,-172.558549,0.00052602,120]
[394002546,1763172667295,-1276.71,0.00052602,120]
[394002547,1763172667304,-500.0,0.00052602,120]
[394002548,1763172667313,-948.59,0.00052602,120]
[394002549,1763172667322,-507.72,0.00052602,120]
[394002550,1763172667331,-500.0,0.00052602,120]
[394002551,1763172667340,-500.0,0.00052602,120]
[394002552,1763172667349,-500.0,0.00052602,120]
[394002553,1763172667358,-500.0,0.00052602,120]
[394002554,1763172667367,-500.0,0.00052602,120]
[394002555,1763172667376,-500.0,0.00052602,120]
[394002556,1763172667385,-747.42,0.00052602,120]
[394002557,1763172667395,-566.74,0.00052602,120]
[394002558,1763172667403,-500.0,0.00052602,120]
[394002559,1763172667412,-502.35840679,0.00052602,120]
[394002560,1763172667421,-500.0,0.00052602,120]
[394002561,1763172667430,-500.0,0.00052602,120]
[394002562,1763172667439,-500.0,0.00052602,120]
[394002563,1763172667448,-1791.91,0.00052602,120]
[394002564,1763172667457,-519.44372118,0.00052602,120]
[394002565,1763172667470,-428.10798037,0.00052602,120]
[394002566,1763172667478,-516.83744831,0.00052602,120]
[394002567,1763172667487,-532.58565324,0.00052602,120]
[394002568,1763172667496,-500.0,0.00052602,120]
[394002569,1763172667505,-500.0,0.00052602,120]
[394002570,1763172667515,-500.0,0.00052602,120]
[394002571,1763172667525,-500.0,0.00052602,120]
[394002572,1763172667533,-500.0,0.00052602,120]
[394002573,1763172667544,-500.0,0.00052602,120]
[394002574,1763172667553,-1017.14,0.00052602,120]
[394002575,1763172667562,-500.0,0.00052602,120]
[394002576,1763172667571,-514.91660758,0.00052602,120]
[394002577,1763172667580,-500.0,0.00052602,120]
[394002578,1763172667589,-358.8527,0.00052602,120]
[394002579,1763172667599,-500.0,0.00052602,120]
[394002580,1763172667608,-500.0,0.00052602,120]
[394002581,1763172667616,-358.8527,0.00052602,120]
[394002582,1763172667626,-936.67,0.00052602,120]
[394002583,1763172667641,-500.0,0.00052602,120]
[394002584,1763172667651,-500.0,0.00052602,120]
[394002585,1763172667660,-500.0,0.00052602,120]
[394002586,1763172667670,-358.8527,0.00052602,120]
[394002587,1763172667679,-500.0,0.00052602,120]
[394002588,1763172667689,-358.8527,0.00052602,120]
[394002589,1763172667699,-541.13078467,0.00052602,120]
[394002590,1763172667708,-500.0,0.00052602,120]
[394002591,1763172667718,-500.0,0.00052602,120]
[394002592,1763172667727,-572.61,0.00052602,120]
[394002593,1763172667736,-500.0,0.00052602,120]
[394002594,1763172667747,-500.0,0.00052602,120]
[394002595,1763172667757,-500.0,0.00052602,120]
[394002596,1763172667766,-2708.03,0.00052602,120]
[394002597,1763172667775,-500.0,0.00052602,120]
[394002598,1763172667784,-500.0,0.00052602,120]
[394002599,1763172667793,-500.0,0.00052602,120]
[394002600,1763172667802,-500.0,0.00052602,120]
[394002601,1763172667811,-151.0,0.00052602,120]
[394002602,1763172667820,-151.0,0.00052602,120]
[394002603,1763172667829,-500.0,0.00052602,120]
[394002604,1763172667838,-536.97608037,0.00052602,120]
[394002605,1763172667847,-500.0,0.00052602,120]
[394002606,1763172667856,-500.0,0.00052602,120]
[394002607,1763172667865,-979.1,0.00052602,120]
[394002608,1763172667874,-519.15315981,0.00052602,120]
[394002609,1763172667883,-500.0,0.00052602,120]
[394002610,1763172667892,-197.292001,0.00052602,120]
[394002611,1763172667901,-500.0,0.00052602,120]
[394002612,1763172667910,-197.292001,0.00052602,120]
[394002613,1763172667919,-500.0,0.00052602,120]
[394002614,1763172667928,-506.57355955,0.00052602,120]
[394002615,1763172667938,-687.91,0.00052602,120]
[394002616,1763172667946,-500.0,0.00052602,120]
[394002617,1763172667955,-197.292001,0.00052602,120]
[394002618,1763172667964,-777.09,0.00052602,120]
[394002619,1763172667973,-197.292001,0.00052602,120]
[394002620,1763172667983,-500.0,0.00052602,120]
[394002621,1763172667992,-500.0,0.00052602,2]
[394002622,1763172668001,-500.0,0.00052602,60]
[394002623,1763172668010,-500.0,0.00052602,120]
[394002624,1763172668019,-1015.1,0.00052602,120]
[394002625,1763172668028,-500.0,0.00052602,120]
[394002626,1763172668038,-500.0,0.00052602,120]
[394002627,1763172668047,-500.0,0.00052602,120]
[394002628,1763172668056,-503.38757461,0.00052602,120]
[394002629,1763172668065,-500.0,0.00052602,120]
[394002630,1763172668075,-525.42,0.00052602,120]
[394002631,1763172668084,-500.0,0.00052602,120]
[394002632,1763172668093,-151.0,0.00052602,120]
[394002633,1763172668103,-500.0,0.00052602,120]
[394002634,1763172668112,-533.64,0.00052602,120]
[394002635,1763172668122,-927.9,0.00052602,120]
[394002636,1763172668131,-528.37079962,0.00052602,120]
[394002637,1763172668140,-500.0,0.00052602,120]
[394002638,1763172668150,-500.0,0.00052602,120]
[394002639,1763172668160,-500.0,0.00052602,120]
[394002640,1763172668169,-500.0,0.00052602,120]
[394002641,1763172668179,-356.203395,0.00052602,120]
[394002642,1763172668188,-500.0,0.00052602,120]
[394002643,1763172668197,-500.0,0.00052602,120]
[394002644,1763172668207,-502.11342007,0.00052602,120]
[394002645,1763172668217,-500.0,0.00052602,120]
[394002646,1763172668228,-356.203395,0.00052602,120]
[394002647,1763172668237,-538.87567838,0.00052602,120]
[394002648,1763172668248,-356.203395,0.00052602,120]
[394002649,1763172668257,-745.41,0.00052602,120]
[394002650,1763172668268,-500.0,0.00052602,120]
[394002651,1763172668277,-587.04740187,0.00052602,120]
[394002652,1763172668286,-356.203395,0.00052602,120]
[394002653,1763172668296,-500.0,0.00052602,120]
[394002654,1763172668305,-500.0,0.00052602,120]
[394002655,1763172668314,-1077.77,0.00052602,120]
[394002656,1763172668323,-500.0,0.00052602,120]
[394002657,1763172668333,-522.07480045,0.00052602,120]
[394002658,1763172668342,-500.0,0.00052602,120]
[394002659,1763172668351,-500.0,0.00052602,120]
[394002660,1763172668361,-500.0,0.00052602,120]
[394002661,1763172668370,-500.0,0.00052602,120]
[394002662,1763172668378,-500.0,0.00052602,120]
[394002663,1763172668388,-624.67,0.00052602,120]
[394002664,1763172668397,-284.396293,0.00052602,120]
[394002665,1763172668406,-500.0,0.00052602,120]
[394002666,1763172668416,-551.58,0.00052602,120]
[394002667,1763172668425,-500.0,0.00052602,120]
[394002668,1763172668434,-1776.75,0.00052602,120]
[394002669,1763172668443,-500.0,0.00052602,120]
[394002670,1763172668452,-577.74,0.00052602,120]
[394002671,1763172668461,-500.0,0.00052602,7]
[394002672,1763172668475,-151.0,0.00052602,120]
[394002673,1763172668484,-151.0,0.00052602,120]
[394002674,1763172668493,-500.0,0.00052602,120]
[394002675,1763172668503,-958.77,0.00052602,120]
[394002676,1763172668514,-500.0,0.00052602,120]
[394002677,1763172668523,-500.0,0.00052602,120]
[394002678,1763172668532,-500.0,0.00052602,120]
[394002679,1763172668542,-151.0,0.00052602,120]
[394002680,1763172668551,-4568.1,0.00052602,3]
[394002681,1763172668560,-500.0,0.00052602,120]
[394002682,1763172668569,-151.0,0.00052602,120]
[394002683,1763172668579,-500.0,0.00052602,120]
[394002684,1763172668588,-500.0,0.00052602,120]
[394002685,1763172668597,-195.642105,0.00052602,7]
[394002686,1763172668606,-500.0,0.00052602,120]
[394002687,1763172668615,-195.642105,0.00052602,7]
[394002688,1763172668625,-500.0,0.00052602,120]
[394002689,1763172668634,-500.0,0.00052602,120]
[394002690,1763172668643,-195.642105,0.00052602,7]
[394002691,1763172668653,-503.43769263,0.00052602,120]
[394002692,1763172668662,-500.0,0.00052602,30]
[394002693,1763172668671,-500.0,0.00052602,120]
[394002694,1763172668680,-195.642105,0.00052602,7]
[394002695,1763172668689,-500.0,0.00052602,120]
[394002696,1763172668698,-500.0,0.00052602,120]
[394002697,1763172668707,-1165.61,0.00052602,120]
[394002698,1763172668716,-694.38,0.00052602,120]
[394002699,1763172668726,-500.0,0.00052602,21]
[394002700,1763172668735,-849.34,0.00052602,120]
[394002701,1763172668744,-1012.59,0.00052602,120]
[394002702,1763172668753,-500.0,0.00052602,10]
[394002703,1763172668763,-629.74427018,0.00052602,120]
[394002704,1763172668772,-500.0,0.00052602,120]
[394002705,1763172668781,-500.0,0.00052602,120]
[394002706,1763172668789,-1298.83,0.00052602,120]
[394002707,1763172668798,-647.88,0.00052602,120]
[394002708,1763172668808,-500.0,0.00052602,120]
[394002709,1763172668817,-1236.1,0.00052602,120]
[394002710,1763172668826,-500.0,0.00052602,120]
[394002711,1763172668939,-500.0,0.00052602,120]
[394002712,1763172668960,-628.92409888,0.00052602,120]
[394002713,1763172668969,-617.48,0.00052602,120]
[394002714,1763172668979,-500.0,0.00052602,120]
[394002715,1763172668988,-500.0,0.00052602,120]
[394002716,1763172668998,-500.0,0.00052602,120]
[394002717,1763172669008,-500.0,0.00052602,120]
[394002718,1763172669017,-508.49952518,0.00052602,120]
[394002719,1763172669027,-1133.68,0.00052602,120]
[394002720,1763172669037,-500.0,0.00052602,120]
[394002721,1763172669046,-500.0,0.00052602,120]
[394002722,1763172669056,-500.0,0.00052602,120]
[394002723,1763172669066,-1584.66,0.00052602,120]
[394002724,1763172669076,-500.0,0.00052602,120]
[394002725,1763172669085,-500.0,0.00052602,120]
[394002726,1763172669095,-533.92382,0.00052602,120]
[394002727,1763172669105,-588.297637,0.00052602,120]
[394002728,1763172669115,-533.92382,0.00052602,120]
[394002729,1763172669125,-588.297637,0.00052602,120]
[394002730,1763172669135,-500.0,0.00052602,120]
[394002731,1763172669145,-533.92382,0.00052602,120]
[394002732,1763172669155,-500.0,0.00052602,120]
[394002733,1763172669165,-588.297637,0.00052602,120]
[394002734,1763172669176,-500.0,0.00052602,120]
[394002735,1763172669187,-533.92382,0.00052602,120]
[394002736,1763172669198,-500.0,0.00052602,120]
[394002737,1763172669208,-375.88894677,0.00052602,3]
[394002738,1763172669219,-588.297637,0.00052602,120]
[394002739,1763172669229,-500.0,0.00052602,120]
[394002740,1763172669239,-500.0,0.00052602,120]
[394002741,1763172669249,-505.1746391,0.00052602,120]
[394002742,1763172669259,-1059.33,0.00052602,120]
[394002743,1763172669268,-500.0,0.00052602,120]
[394002744,1763172669279,-500.0,0.00052602,120]
[394002745,1763172669289,-222.029966,0.00052602,120]
[394002746,1763172669298,-500.0,0.00052602,120]
[394002747,1763172669307,-500.0,0.00052602,120]
[394002748,1763172669317,-154.800377,0.00052602,120]
[394002749,1763172669326,-500.0,0.00052602,120]
[394002750,1763172669336,-500.0,0.00052602,120]
[394002751,1763172669345,-1158.62,0.00052602,120]
[394002752,1763172669355,-504.37169542,0.00052602,120]
[394002753,1763172669364,-151.0,0.00052602,120]
[394002754,1763172669373,-500.0,0.00052602,120]
[394002755,1763172669383,-1253.127483,0.00052602,120]
[394002756,1763172669392,-151.0,0.00052602,120]
[394002757,1763172669402,-151.0,0.00052602,120]
[394002758,1763172669411,-4088.64,0.00052602,120]
[394002759,1763172669420,-1253.127483,0.00052602,120]
[394002760,1763172669430,-500.0,0.00052602,120]
[394002761,1763172669439,-1253.127483,0.00052602,120]
[394002762,1763172669449,-1253.127483,0.00052602,120]
[394002763,1763172669458,-269.026467,0.00052602,120]
[394002764,1763172669470,-500.0,0.00052602,120]
[394002765,1763172669479,-500.0,0.00052602,120]
[394002766,1763172669488,-500.0,0.00052602,120]
[394002767,1763172669498,-1137.07,0.00052602,120]
[394002768,1763172669507,-500.0,0.00052602,120]
[394002769,1763172669516,-503.33022116,0.00052602,120]
[394002770,1763172669526,-151.0,0.00052602,30]
[394002771,1763172669535,-522.16,0.00052602,120]
[394002772,1763172669545,-652.53,0.00052602,120]
[394002773,1763172669554,-500.0,0.00052602,120]
[394002774,1763172669563,-500.0,0.00052602,120]
[394002775,1763172669573,-500.0,0.00052602,120]
[394002776,1763172669582,-777.42,0.00052602,120]
[394002777,1763172669591,-500.0,0.00052602,120]
[394002778,1763172669600,-500.0,0.00052602,120]
[394002779,1763172669609,-500.0,0.00052602,120]
[394002780,1763172669618,-500.0,0.00052602,120]
[394002781,1763172669627,-500.0,0.00052602,120]
[394002782,1763172669637,-500.0,0.00052602,120]
[394002783,1763172669646,-500.0,0.00052602,120]
[394002784,1763172669655,-500.0,0.00052602,120]
[394002785,1763172669664,-500.0,0.00052602,120]
[394002786,1763172669673,-500.0,0.00052602,120]
[394002787,1763172669682,-500.0,0.00052602,120]
[394002788,1763172669691,-500.0,0.00052602,120]
[394002789,1763172669701,-2806.11,0.00052602,120]
[394002790,1763172669710,-502.43446586,0.00052602,120]
[394002791,1763172669719,-500.0,0.00052602,120]
[394002792,1763172669728,-546.25,0.00052602,120]
[394002793,1763172669738,-500.0,0.00052602,120]
[394002794,1763172669747,-500.0,0.00052602,120]
[394002795,1763172669756,-823.53,0.00052602,120]
[394002796,1763172669766,-1022.54,0.00052602,120]
[394002797,1763172669775,-500.0,0.00052602,120]
[394002798,1763172669784,-1369.59,0.00052602,120]
[394002799,1763172669793,-500.0,0.00052602,120]
[394002800,1763172669802,-596.47573371,0.00052602,120]
[394002801,1763172669811,-154.54474,0.00052602,120]
[394002802,1763172669820,-520.15,0.00052602,120]
[394002803,1763172669830,-502.58989111,0.00052602,120]
[394002804,1763172669839,-501.25713169,0.00052602,120]
[394002805,1763172669848,-500.0,0.00052602,120]
[394002806,1763172669861,-504.46,0.00052602,120]
[394002807,1763172669871,-500.0,0.00052602,120]
[394002808,1763172669880,-512.38682445,0.00052602,120]
[394002809,1763172669890,-500.0,0.00052602,120]
[394002810,1763172669899,-664.41,0.00052602,120]
[394002811,1763172669909,-557.62079573,0.00052602,120]
[394002812,1763172669918,-500.0,0.00052602,120]
[394002813,1763172669928,-500.0,0.00052602,120]
[394002814,1763172669938,-631.34,0.00052602,120]
[394002815,1763172669947,-500.0,0.00052602,120]
[394002816,1763172669957,-500.0,0.00052602,120]
[394002817,1763172669966,-500.0,0.00052602,120]
[394002818,1763172669975,-500.0,0.00052602,120]
[394002819,1763172669985,-596.09,0.00052602,120]
[394002820,1763172669994,-500.0,0.00052602,120]
[394002821,1763172670003,-500.0,0.00052602,120]
[394002822,1763172670013,-151.0,0.00052602,120]
[394002823,1763172670022,-1203.61,0.00052602,120]
[394002824,1763172670031,-151.0,0.00052602,2]
[394002825,1763172670041,-151.0,0.00052602,120]
[394002826,1763172670050,-151.0,0.00052602,120]
[394002827,1763172670060,-500.0,0.00052602,120]
[394002828,1763172670069,-500.0,0.00052602,120]
[394002829,1763172670078,-877.29,0.00052602,120]
[394002830,1763172670088,-500.0,0.00052602,120]
[394002831,1763172670098,-1000.0,0.00052602,2]
[394002832,1763172670107,-526.98089546,0.00052602,120]
[394002833,1763172670116,-446.620484,0.00052632,2]
[394002834,1763172670126,-600.0,0.00052799,2]
[394002835,1763172670136,-500.0,0.00052876,120]
[394002836,1763172670145,-500.0,0.00052876,120]
[394002837,1763172670154,-505.15377895,0.00052876,120]
[394002838,1763172670163,-500.0,0.00052876,120]